[Event "Live Chess"]
[Site "Chess.com"]
[Date "2023.05.21"]
[Round "-"]
[White "Hacker_2009"]
[Black "chessfiction"]
[Result "1-0"]
[WhiteElo "1933"]
[BlackElo "2350"]
[TimeControl "300"]
[EndTime "21:59:53 PDT"]
[Termination "Hacker_2009 won by resignation"]

1. d4 {[%clk 0:04:57]} 1... d5 {[%clk 0:04:57.9]} 2. Nf3 {[%clk 0:04:55.8]} 2...
Nc6 {[%clk 0:04:56.7]} 3. e3 {[%clk 0:04:54.7]} 3... Bg4 {[%clk 0:04:53.5]} 4.
Be2 {[%clk 0:04:52.8]} 4... Qd6 {[%clk 0:04:51.4]} 5. c4 {[%clk 0:04:49.4]} 5...
O-O-O {[%clk 0:04:48]} 6. cxd5 {[%clk 0:04:47.5]} 6... Qxd5 {[%clk 0:04:45.6]}
7. Nc3 {[%clk 0:04:47.1]} 7... Qh5 {[%clk 0:04:44.3]} 8. O-O {[%clk 0:04:44.4]}
8... e5 {[%clk 0:04:42.8]} 9. d5 {[%clk 0:04:42.5]} 9... e4 {[%clk 0:04:35.2]}
10. Nd4 {[%clk 0:04:36.2]} 10... Ne5 {[%clk 0:04:27]} 11. Bxg4+ {[%clk
0:04:30.2]} 11... Nxg4 {[%clk 0:04:25.9]} 12. h3 {[%clk 0:04:29.3]} 12... f5
{[%clk 0:04:24.6]} 13. Nxf5 {[%clk 0:04:16.5]} 13... N8f6 {[%clk 0:04:20.6]} 14.
Ng3 {[%clk 0:04:09.2]} 14... Qh4 {[%clk 0:04:17.4]} 15. Nf5 {[%clk 0:04:05.1]}
15... Qg5 {[%clk 0:04:14.9]} 16. Ng3 {[%clk 0:04:04.6]} 16... Bd6 {[%clk
0:04:11.9]} 17. Ncxe4 {[%clk 0:03:59.1]} 17... Qh4 {[%clk 0:04:08.2]} 18. Nxd6+
{[%clk 0:03:54.5]} 18... Rxd6 {[%clk 0:04:05.9]} 19. Nf5 {[%clk 0:03:53]} 19...
Qh5 {[%clk 0:03:55.4]} 20. Nxd6+ {[%clk 0:03:51.3]} 20... cxd6 {[%clk
0:03:53.9]} 21. Qf3 {[%clk 0:03:47.1]} 21... Ne5 {[%clk 0:03:51.8]} 22. Qxh5
{[%clk 0:03:44.9]} 22... Nxh5 {[%clk 0:03:51.7]} 23. Bd2 {[%clk 0:03:44]} 23...
Nf6 {[%clk 0:03:48.2]} 24. Rac1+ {[%clk 0:03:43.3]} 24... Kd7 {[%clk 0:03:46.6]}
25. Bc3 {[%clk 0:03:42.4]} 25... Nxd5 {[%clk 0:03:37.7]} 26. Bxe5 {[%clk
0:03:40.6]} 26... dxe5 {[%clk 0:03:37.6]} 27. Rfd1 {[%clk 0:03:39.1]} 27... Ke6
{[%clk 0:03:37.1]} 28. Rc5 {[%clk 0:03:31.7]} 28... Nf6 {[%clk 0:03:31.8]} 29.
Rc7 {[%clk 0:03:30]} 29... g5 {[%clk 0:03:30.4]} 30. Rxb7 {[%clk 0:03:28.1]}
30... g4 {[%clk 0:03:29.9]} 31. hxg4 {[%clk 0:03:26.9]} 31... Nxg4 {[%clk
0:03:28.1]} 32. Rxa7 {[%clk 0:03:25.4]} 32... h5 {[%clk 0:03:26.8]} 33. Ra6+
{[%clk 0:03:21.6]} 33... Kf5 {[%clk 0:03:24.9]} 34. b4 {[%clk 0:03:17.4]} 34...
h4 {[%clk 0:03:21.5]} 35. b5 {[%clk 0:03:14.5]} 35... h3 {[%clk 0:03:16.1]} 36.
gxh3 {[%clk 0:03:13.2]} 36... Rxh3 {[%clk 0:03:15.1]} 37. b6 {[%clk 0:03:11.8]}
37... Rh8 {[%clk 0:03:03.1]} 38. b7 {[%clk 0:03:08]} 38... Rb8 {[%clk
0:03:01.6]} 39. Rd7 {[%clk 0:03:07.1]} 39... Nf6 {[%clk 0:02:59.9]} 40. Rg7
{[%clk 0:03:00.2]} 40... Ne8 {[%clk 0:02:54.9]} 41. Ra8 {[%clk 0:02:54.5]} 1-0

[Event "Live Chess"]
[Site "Chess.com"]
[Date "2023.05.21"]
[Round "-"]
[White "ReeceHockton"]
[Black "Singapourfeuj"]
[Result "0-1"]
[WhiteElo "358"]
[BlackElo "2187"]
[TimeControl "300"]
[EndTime "22:00:19 PDT"]
[Termination "Singapourfeuj won by resignation"]

1. d4 {[%clk 0:04:52.5]} 1... Nf6 {[%clk 0:04:58.9]} 2. e3 {[%clk 0:04:44]} 2...
g6 {[%clk 0:04:57]} 3. Nf3 {[%clk 0:04:36.7]} 3... Bg7 {[%clk 0:04:55.7]} 4. e4
{[%clk 0:04:32.3]} 4... d6 {[%clk 0:04:53.2]} 5. Bg5 {[%clk 0:04:30.5]} 5...
Nxe4 {[%clk 0:04:50.8]} 6. Qd3 {[%clk 0:04:28.9]} 6... Nxg5 {[%clk 0:04:47.9]}
7. Be2 {[%clk 0:04:23.5]} 7... Nxf3+ {[%clk 0:04:43.4]} 8. gxf3 {[%clk
0:04:12.4]} 8... c6 {[%clk 0:04:41.4]} 9. Qe4 {[%clk 0:04:04.5]} 9... Bf5 {[%clk
0:04:39.3]} 10. Qxe7+ {[%clk 0:04:02.2]} 10... Qxe7 {[%clk 0:04:38.1]} 11. d5
{[%clk 0:03:43.6]} 11... O-O {[%clk 0:04:35.4]} 0-1

[Event "Live Chess"]
[Site "Chess.com"]
[Date "2023.05.21"]
[Round "-"]
[White "1PRK1"]
[Black "LutherSullivan"]
[Result "0-1"]
[WhiteElo "1378"]
[BlackElo "2180"]
[TimeControl "300"]
[EndTime "22:01:14 PDT"]
[Termination "LutherSullivan won by resignation"]

1. e4 {[%clk 0:04:58.4]} 1... c5 {[%clk 0:04:58.1]} 2. Nf3 {[%clk 0:04:57.2]}
2... Nc6 {[%clk 0:04:57.4]} 3. d4 {[%clk 0:04:56.4]} 3... cxd4 {[%clk
0:04:57.1]} 4. Nxd4 {[%clk 0:04:55.9]} 4... g6 {[%clk 0:04:56.2]} 5. Be3 {[%clk
0:04:53.6]} 5... Bg7 {[%clk 0:04:54.5]} 6. Nc3 {[%clk 0:04:52.6]} 6... Nf6
{[%clk 0:04:53.7]} 7. f3 {[%clk 0:04:51]} 7... O-O {[%clk 0:04:52.7]} 8. Bc4
{[%clk 0:04:50.2]} 8... Qb6 {[%clk 0:04:51.5]} 9. Bb3 {[%clk 0:04:47.3]} 9...
Nxe4 {[%clk 0:04:49.5]} 10. Nxc6 {[%clk 0:04:36.5]} 10... Qxe3+ {[%clk
0:04:45.2]} 11. Qe2 {[%clk 0:04:29.4]} 11... Bxc3+ {[%clk 0:04:41]} 12. Kf1
{[%clk 0:04:08]} 12... Nd2+ {[%clk 0:04:35.7]} 13. Ke1 {[%clk 0:04:04.8]} 0-1

[Event "Live Chess"]
[Site "Chess.com"]
[Date "2023.05.21"]
[Round "-"]
[White "Biranidun"]
[Black "profpirate4"]
[Result "1-0"]
[WhiteElo "2541"]
[BlackElo "1066"]
[TimeControl "300"]
[EndTime "22:02:04 PDT"]
[Termination "Biranidun won by checkmate"]

1. e4 {[%clk 0:04:59.2]} 1... c5 {[%clk 0:04:58.1]} 2. Nf3 {[%clk 0:04:58.3]}
2... d6 {[%clk 0:04:57.2]} 3. d4 {[%clk 0:04:57.9]} 3... cxd4 {[%clk 0:04:56.2]}
4. Nxd4 {[%clk 0:04:57.8]} 4... Nf6 {[%clk 0:04:55.1]} 5. Nc3 {[%clk 0:04:57.6]}
5... a6 {[%clk 0:04:54.3]} 6. Be3 {[%clk 0:04:56.5]} 6... e5 {[%clk 0:04:53.1]}
7. Nb3 {[%clk 0:04:56]} 7... Be6 {[%clk 0:04:49.8]} 8. f3 {[%clk 0:04:55.3]}
8... Be7 {[%clk 0:04:48.5]} 9. Qd2 {[%clk 0:04:54.5]} 9... O-O {[%clk
0:04:47.1]} 10. O-O-O {[%clk 0:04:54]} 10... Nbd7 {[%clk 0:04:41.9]} 11. g4
{[%clk 0:04:53.3]} 11... b5 {[%clk 0:04:40.1]} 12. g5 {[%clk 0:04:51.7]} 12...
Nh5 {[%clk 0:04:37.8]} 13. Kb1 {[%clk 0:04:48.7]} 13... Rc8 {[%clk 0:04:31]} 14.
Nd5 {[%clk 0:04:45.3]} 14... Bxd5 {[%clk 0:04:19.8]} 15. exd5 {[%clk 0:04:45.2]}
15... Nf4 {[%clk 0:04:17.6]} 16. Bxf4 {[%clk 0:04:43.3]} 16... exf4 {[%clk
0:04:11.6]} 17. h4 {[%clk 0:04:41.7]} 17... Ne5 {[%clk 0:04:05]} 18. Nd4 {[%clk
0:04:40.7]} 18... h6 {[%clk 0:03:37.5]} 19. gxh6 {[%clk 0:04:38.5]} 19... gxh6
{[%clk 0:03:34.5]} 20. Qxf4 {[%clk 0:04:36.2]} 20... Ng6 {[%clk 0:03:29.8]} 21.
Qxh6 {[%clk 0:04:34.5]} 21... Qc7 {[%clk 0:03:25]} 22. Bd3 {[%clk 0:04:31.4]}
22... Qc5 {[%clk 0:03:17.9]} 23. Ne6 {[%clk 0:04:28.5]} 23... fxe6 {[%clk
0:03:15.5]} 24. Qxg6+ {[%clk 0:04:27.7]} 24... Kh8 {[%clk 0:03:13.5]} 25. Qh7#
{[%clk 0:04:27.6]} 1-0

[Event "Live Chess"]
[Site "Chess.com"]
[Date "2023.05.21"]
[Round "-"]
[White "tpm07"]
[Black "raminguy"]
[Result "0-1"]
[WhiteElo "1935"]
[BlackElo "1973"]
[TimeControl "300"]
[EndTime "22:02:07 PDT"]
[Termination "raminguy won on time"]

1. d4 {[%clk 0:04:57]} 1... d5 {[%clk 0:04:59.1]} 2. c4 {[%clk 0:04:55.3]} 2...
e6 {[%clk 0:04:58.5]} 3. g3 {[%clk 0:04:54]} 3... a6 {[%clk 0:04:57.9]} 4. Bg2
{[%clk 0:04:51.6]} 4... Nf6 {[%clk 0:04:56.9]} 5. Nf3 {[%clk 0:04:50.4]} 5...
dxc4 {[%clk 0:04:55.7]} 6. O-O {[%clk 0:04:48.7]} 6... b5 {[%clk 0:04:54.7]} 7.
Ne5 {[%clk 0:04:47.1]} 7... Ra7 {[%clk 0:04:53.7]} 8. a4 {[%clk 0:04:43.6]} 8...
Bb7 {[%clk 0:04:04]} 9. axb5 {[%clk 0:04:36.4]} 9... Bxg2 {[%clk 0:04:01.2]} 10.
Kxg2 {[%clk 0:04:34.3]} 10... Qd5+ {[%clk 0:04:00.5]} 11. f3 {[%clk 0:04:25.4]}
11... Qxb5 {[%clk 0:03:58.1]} 12. Nc3 {[%clk 0:04:22.6]} 12... Qb7 {[%clk
0:03:46.3]} 13. Nxc4 {[%clk 0:04:18.1]} 13... Be7 {[%clk 0:03:45.6]} 14. e4
{[%clk 0:04:10.4]} 14... O-O {[%clk 0:03:42.7]} 15. Be3 {[%clk 0:04:09.9]} 15...
Ra8 {[%clk 0:03:39.7]} 16. Na5 {[%clk 0:04:03.8]} 16... Qc8 {[%clk 0:03:37.4]}
17. Qa4 {[%clk 0:03:52.4]} 17... c5 {[%clk 0:03:33.5]} 18. Rfc1 {[%clk 0:03:43]}
18... cxd4 {[%clk 0:03:12.5]} 19. Bxd4 {[%clk 0:03:39.6]} 19... Qd8 {[%clk
0:03:08.5]} 20. Rd1 {[%clk 0:03:35.6]} 20... Qe8 {[%clk 0:03:02.7]} 21. Qc4
{[%clk 0:03:11.9]} 21... Qc8 {[%clk 0:02:42.3]} 22. Qe2 {[%clk 0:03:02.2]} 22...
Nc6 {[%clk 0:02:36.5]} 23. Nxc6 {[%clk 0:02:58]} 23... Qxc6 {[%clk 0:02:34.1]}
24. Rdc1 {[%clk 0:02:52.3]} 24... Qb7 {[%clk 0:02:31]} 25. Na4 {[%clk
0:02:38.5]} 25... Rfd8 {[%clk 0:02:23.7]} 26. Bc3 {[%clk 0:02:28.4]} 26... Nh5
{[%clk 0:02:12.9]} 27. Kg1 {[%clk 0:02:11.4]} 27... Qa7+ {[%clk 0:02:08]} 28.
Kh1 {[%clk 0:02:07.3]} 28... Qd7 {[%clk 0:01:55.6]} 29. Nb6 {[%clk 0:02:01]}
29... Qb7 {[%clk 0:01:39.1]} 30. Nxa8 {[%clk 0:01:58]} 30... Rxa8 {[%clk
0:01:39]} 31. Qc4 {[%clk 0:01:45.4]} 31... h6 {[%clk 0:01:31.6]} 32. Bd4 {[%clk
0:01:29.8]} 32... Bg5 {[%clk 0:01:14.7]} 33. Rc2 {[%clk 0:01:15.8]} 33... Rd8
{[%clk 0:00:56.3]} 34. Bc3 {[%clk 0:00:41]} 34... Rc8 {[%clk 0:00:51]} 35. Qxa6
{[%clk 0:00:37.6]} 35... Qd7 {[%clk 0:00:41.9]} 36. Qe2 {[%clk 0:00:31.1]} 36...
Be7 {[%clk 0:00:31.1]} 37. Rd1 {[%clk 0:00:30]} 37... Qa4 {[%clk 0:00:28.3]} 38.
Rcd2 {[%clk 0:00:27.7]} 38... Kh7 {[%clk 0:00:26.1]} 39. f4 {[%clk 0:00:25.5]}
39... Nf6 {[%clk 0:00:18.6]} 40. e5 {[%clk 0:00:14.8]} 40... Nd5 {[%clk
0:00:16.7]} 41. Qd3+ {[%clk 0:00:13.9]} 41... g6 {[%clk 0:00:13.6]} 42. Qd4
{[%clk 0:00:12.6]} 42... Qa8 {[%clk 0:00:10.6]} 43. Kg1 {[%clk 0:00:08.6]} 43...
Bc5 {[%clk 0:00:09.9]} 0-1

[Event "Live Chess"]
[Site "Chess.com"]
[Date "2023.05.21"]
[Round "-"]
[White "Singapourfeuj"]
[Black "Shepherds_Pie"]
[Result "1-0"]
[WhiteElo "2190"]
[BlackElo "1912"]
[TimeControl "300"]
[EndTime "22:02:57 PDT"]
[Termination "Singapourfeuj won by resignation"]

1. d4 {[%clk 0:04:59.1]} 1... d5 {[%clk 0:04:55.8]} 2. c4 {[%clk 0:04:57.6]}
2... e6 {[%clk 0:04:47.6]} 3. Nf3 {[%clk 0:04:56.4]} 3... Nf6 {[%clk 0:04:45.9]}
4. Nc3 {[%clk 0:04:53.9]} 4... c5 {[%clk 0:04:44.9]} 5. cxd5 {[%clk 0:04:51.2]}
5... Nxd5 {[%clk 0:04:43.7]} 6. e4 {[%clk 0:04:48.2]} 6... Nxc3 {[%clk
0:04:42.3]} 7. bxc3 {[%clk 0:04:47]} 7... cxd4 {[%clk 0:04:41.4]} 8. cxd4 {[%clk
0:04:46.1]} 8... Bb4+ {[%clk 0:04:40.1]} 9. Bd2 {[%clk 0:04:45.1]} 9... Bxd2+
{[%clk 0:04:39]} 10. Qxd2 {[%clk 0:04:44.1]} 10... O-O {[%clk 0:04:38.9]} 11.
Bc4 {[%clk 0:04:41]} 11... Nd7 {[%clk 0:04:37.5]} 12. O-O {[%clk 0:04:39.5]}
12... b6 {[%clk 0:04:36.3]} 13. d5 {[%clk 0:04:37.6]} 13... exd5 {[%clk
0:04:34.5]} 14. Bxd5 {[%clk 0:04:36.6]} 14... Rb8 {[%clk 0:04:33.2]} 15. Rfd1
{[%clk 0:04:34.2]} 15... Bb7 {[%clk 0:04:30.4]} 16. Bxb7 {[%clk 0:04:24.4]}
16... Rxb7 {[%clk 0:04:28.3]} 17. Ne5 {[%clk 0:04:21.8]} 17... Qe7 {[%clk
0:04:10.6]} 18. Nxd7 {[%clk 0:04:18]} 18... Re8 {[%clk 0:04:00.7]} 19. e5 {[%clk
0:04:11.4]} 19... Kh8 {[%clk 0:03:59]} 20. Qd6 {[%clk 0:04:01.5]} 20... Qxd6
{[%clk 0:03:49.9]} 21. Rxd6 {[%clk 0:03:58.4]} 21... Rd8 {[%clk 0:03:48.5]} 22.
Rad1 {[%clk 0:03:56.9]} 22... Rc7 {[%clk 0:03:47.3]} 23. f4 {[%clk 0:03:53.4]}
23... f6 {[%clk 0:03:45.9]} 24. e6 {[%clk 0:03:51.8]} 1-0

[Event "Live Chess"]
[Site "Chess.com"]
[Date "2023.05.21"]
[Round "-"]
[White "Doge_Dandolo"]
[Black "Nazarenko_vital"]
[Result "0-1"]
[WhiteElo "1908"]
[BlackElo "1614"]
[TimeControl "300"]
[EndTime "22:03:03 PDT"]
[Termination "Nazarenko_vital won by checkmate"]

1. Nf3 {[%clk 0:04:57.1]} 1... Nf6 {[%clk 0:04:58.1]} 2. c4 {[%clk 0:04:56.1]}
2... d5 {[%clk 0:04:55.5]} 3. cxd5 {[%clk 0:04:52.9]} 3... Qxd5 {[%clk
0:04:52.2]} 4. g3 {[%clk 0:04:46.3]} 4... c6 {[%clk 0:04:49.8]} 5. Bg2 {[%clk
0:04:45.4]} 5... Qa5 {[%clk 0:04:48.5]} 6. Nc3 {[%clk 0:04:43.3]} 6... e6 {[%clk
0:04:47.3]} 7. d4 {[%clk 0:04:37.6]} 7... h5 {[%clk 0:04:45.9]} 8. Bf4 {[%clk
0:04:36.2]} 8... Qd8 {[%clk 0:04:43.3]} 9. Qb3 {[%clk 0:04:28.3]} 9... Bd6
{[%clk 0:04:41.3]} 10. Bxd6 {[%clk 0:04:25.6]} 10... Qxd6 {[%clk 0:04:40.2]} 11.
Rd1 {[%clk 0:04:20.1]} 11... Nbd7 {[%clk 0:04:32.2]} 12. O-O {[%clk 0:04:17.5]}
12... Nb6 {[%clk 0:04:12.5]} 13. e4 {[%clk 0:04:13]} 13... O-O {[%clk
0:03:59.2]} 14. e5 {[%clk 0:04:11.9]} 14... Qe7 {[%clk 0:03:47]} 15. exf6 {[%clk
0:04:10]} 15... Qxf6 {[%clk 0:03:45.8]} 16. a4 {[%clk 0:04:04.7]} 16... Nd5
{[%clk 0:03:43.9]} 17. Nxd5 {[%clk 0:04:02.8]} 17... exd5 {[%clk 0:03:42.8]} 18.
Ne5 {[%clk 0:03:59.4]} 18... h4 {[%clk 0:03:36.8]} 19. gxh4 {[%clk 0:03:40.2]}
19... Qxh4 {[%clk 0:03:30.2]} 20. Qg3 {[%clk 0:03:39]} 20... Qxg3 {[%clk
0:02:54.8]} 21. fxg3 {[%clk 0:03:36.1]} 21... f6 {[%clk 0:02:53.4]} 22. Nd3
{[%clk 0:03:32.8]} 22... Bg4 {[%clk 0:02:50]} 23. Rde1 {[%clk 0:03:28.5]} 23...
Rfe8 {[%clk 0:02:47.1]} 24. Nc5 {[%clk 0:03:26.2]} 24... b6 {[%clk 0:02:44.2]}
25. Nd3 {[%clk 0:03:20.6]} 25... Be2 {[%clk 0:02:40.6]} 26. Rxe2 {[%clk
0:03:14.1]} 26... Rxe2 {[%clk 0:02:37.5]} 27. Nb4 {[%clk 0:03:13.3]} 27... Rxb2
{[%clk 0:02:34.5]} 28. Nxc6 {[%clk 0:03:12.1]} 28... Kf8 {[%clk 0:02:30.7]} 29.
Re1 {[%clk 0:03:07.5]} 29... Re8 {[%clk 0:02:27.2]} 30. Rxe8+ {[%clk 0:03:04.4]}
30... Kxe8 {[%clk 0:02:26.4]} 31. Nxa7 {[%clk 0:03:02.6]} 31... Rb4 {[%clk
0:02:24.1]} 32. Bxd5 {[%clk 0:02:58.7]} 32... Rxd4 {[%clk 0:02:21]} 33. Bf3
{[%clk 0:02:56.9]} 33... Kf7 {[%clk 0:02:14]} 34. Bc6 {[%clk 0:02:51.3]} 34...
Ke6 {[%clk 0:02:10.9]} 35. Bb5 {[%clk 0:02:49]} 35... Rd1+ {[%clk 0:02:07.9]}
36. Kg2 {[%clk 0:02:46.7]} 36... Rd2+ {[%clk 0:02:05.3]} 37. Kh3 {[%clk
0:02:45]} 37... f5 {[%clk 0:02:02.8]} 38. Nc6 {[%clk 0:02:41.6]} 38... g5 {[%clk
0:01:59.9]} 39. Nb4 {[%clk 0:02:32.8]} 39... g4+ {[%clk 0:01:56.4]} 40. Kh4
{[%clk 0:02:29.1]} 40... Kf6 {[%clk 0:01:49.8]} 41. h3 {[%clk 0:02:24.7]} 41...
Rd8 {[%clk 0:01:41.2]} 42. hxg4 {[%clk 0:02:22.5]} 42... Rh8# {[%clk 0:01:38]}
0-1

[Event "Live Chess"]
[Site "Chess.com"]
[Date "2023.05.21"]
[Round "-"]
[White "Conradical12"]
[Black "Hacker_2009"]
[Result "0-1"]
[WhiteElo "1631"]
[BlackElo "1935"]
[TimeControl "300"]
[EndTime "22:03:51 PDT"]
[Termination "Hacker_2009 won by resignation"]

1. e4 {[%clk 0:04:57]} 1... c5 {[%clk 0:04:57.9]} 2. Nf3 {[%clk 0:04:56.3]} 2...
d6 {[%clk 0:04:56.4]} 3. Bc4 {[%clk 0:04:54.5]} 3... e6 {[%clk 0:04:51.3]} 4. d4
{[%clk 0:04:47.3]} 4... cxd4 {[%clk 0:04:49.5]} 5. Nxd4 {[%clk 0:04:45.6]} 5...
Nf6 {[%clk 0:04:49.4]} 6. Nc3 {[%clk 0:04:43.2]} 6... a6 {[%clk 0:04:48.5]} 7.
O-O {[%clk 0:04:39.9]} 7... Be7 {[%clk 0:04:47.2]} 8. Bd3 {[%clk 0:04:37.3]}
8... O-O {[%clk 0:04:45.4]} 9. f4 {[%clk 0:04:34]} 9... b5 {[%clk 0:04:44]} 10.
e5 {[%clk 0:04:30.3]} 10... dxe5 {[%clk 0:04:42.4]} 11. fxe5 {[%clk 0:04:28.5]}
11... Qxd4+ {[%clk 0:04:41.4]} 12. Rf2 {[%clk 0:04:22.3]} 12... Qxe5 {[%clk
0:04:37.4]} 13. Bf4 {[%clk 0:04:19.6]} 13... Qh5 {[%clk 0:04:23.3]} 14. Be2
{[%clk 0:04:09]} 14... Qc5 {[%clk 0:04:13.2]} 15. Bd3 {[%clk 0:03:55.6]} 15...
Bb7 {[%clk 0:04:09.2]} 16. a3 {[%clk 0:03:35.1]} 16... Nc6 {[%clk 0:04:06]} 17.
Qe2 {[%clk 0:03:24.7]} 17... Qb6 {[%clk 0:04:01.9]} 18. Bg5 {[%clk 0:03:22.2]}
18... h6 {[%clk 0:03:54]} 19. Bxf6 {[%clk 0:03:20.7]} 19... Bxf6 {[%clk
0:03:49.2]} 20. Rf1 {[%clk 0:03:14.9]} 20... Bd4 {[%clk 0:03:46.9]} 21. Qe4
{[%clk 0:03:10.6]} 21... Bxf2+ {[%clk 0:03:45.1]} 22. Kh1 {[%clk 0:03:09]} 22...
g6 {[%clk 0:03:41.9]} 23. a4 {[%clk 0:03:04.6]} 23... Ne7 {[%clk 0:03:37.9]} 24.
a5 {[%clk 0:03:01.7]} 24... Qc7 {[%clk 0:03:29.4]} 25. Rxf2 {[%clk 0:02:58.8]}
25... Bxe4 {[%clk 0:03:27.5]} 26. Bxe4 {[%clk 0:02:56.8]} 0-1

[Event "Live Chess"]
[Site "Chess.com"]
[Date "2023.05.21"]
[Round "-"]
[White "ExIsambard"]
[Black "KeithArkell"]
[Result "0-1"]
[WhiteElo "1919"]
[BlackElo "2556"]
[TimeControl "300"]
[EndTime "22:04:21 PDT"]
[Termination "KeithArkell won by resignation"]

1. d4 {[%clk 0:04:59.4]} 1... e6 {[%clk 0:04:58.5]} 2. Nf3 {[%clk 0:04:58.1]}
2... Nf6 {[%clk 0:04:57.4]} 3. Bg5 {[%clk 0:04:57.7]} 3... c5 {[%clk 0:04:56.3]}
4. c3 {[%clk 0:04:56.6]} 4... cxd4 {[%clk 0:04:54.8]} 5. cxd4 {[%clk 0:04:52.4]}
5... Bb4+ {[%clk 0:04:53.8]} 6. Nbd2 {[%clk 0:04:51]} 6... Nc6 {[%clk
0:04:49.9]} 7. a3 {[%clk 0:04:49.1]} 7... Bxd2+ {[%clk 0:04:46.3]} 8. Qxd2
{[%clk 0:04:45.6]} 8... Ne4 {[%clk 0:04:43]} 9. Bxd8 {[%clk 0:04:43.4]} 9...
Nxd2 {[%clk 0:04:42.1]} 10. Kxd2 {[%clk 0:04:38.1]} 10... Kxd8 {[%clk
0:04:40.5]} 11. e3 {[%clk 0:04:37.5]} 11... b6 {[%clk 0:04:39.2]} 12. Bd3 {[%clk
0:04:32.4]} 12... Bb7 {[%clk 0:04:38.1]} 13. Rhg1 {[%clk 0:04:31.9]} 13... Na5
{[%clk 0:04:37.4]} 14. Ng5 {[%clk 0:04:26.8]} 14... Ke7 {[%clk 0:04:34.3]} 15.
Rae1 {[%clk 0:04:12.5]} 15... h6 {[%clk 0:04:32.5]} 16. Ne4 {[%clk 0:04:10.9]}
16... Rac8 {[%clk 0:04:31.1]} 17. Nc3 {[%clk 0:04:05.4]} 17... Nc4+ {[%clk
0:04:28.8]} 18. Bxc4 {[%clk 0:04:03.9]} 18... Rxc4 {[%clk 0:04:27.7]} 19. g4
{[%clk 0:03:58.7]} 19... g5 {[%clk 0:04:25.4]} 20. Rc1 {[%clk 0:03:46.4]} 20...
h5 {[%clk 0:04:23.3]} 21. b3 {[%clk 0:03:36.1]} 21... Rcc8 {[%clk 0:04:21.1]}
22. h3 {[%clk 0:03:28.6]} 22... hxg4 {[%clk 0:04:20.1]} 23. hxg4 {[%clk
0:03:26.3]} 23... Rh2 {[%clk 0:04:18.9]} 24. Ke1 {[%clk 0:03:23.8]} 24... Bf3
{[%clk 0:04:16.2]} 25. Rg3 {[%clk 0:03:07.9]} 25... Rh1+ {[%clk 0:04:13.3]} 26.
Kd2 {[%clk 0:03:06.7]} 26... Rxc1 {[%clk 0:04:12.2]} 27. Kxc1 {[%clk 0:03:05.9]}
27... Bxg4 {[%clk 0:04:02.3]} 28. Kd2 {[%clk 0:02:56.8]} 28... f5 {[%clk
0:03:57.7]} 29. f3 {[%clk 0:02:54.8]} 29... Bh5 {[%clk 0:03:56.9]} 30. Rxg5
{[%clk 0:02:53.3]} 30... Bxf3 {[%clk 0:03:55.7]} 31. Rg7+ {[%clk 0:02:48.3]}
31... Kd6 {[%clk 0:03:12.6]} 32. Nb5+ {[%clk 0:02:26.5]} 32... Kd5 {[%clk
0:03:10.8]} 33. Nxa7 {[%clk 0:02:09.3]} 33... Rh8 {[%clk 0:02:57.8]} 34. Rxd7+
{[%clk 0:02:03.5]} 34... Ke4 {[%clk 0:02:56.8]} 35. Nb5 {[%clk 0:01:46.9]} 35...
Rh2+ {[%clk 0:02:53.5]} 36. Kc3 {[%clk 0:01:45.4]} 36... Kxe3 {[%clk 0:02:52.4]}
37. Re7 {[%clk 0:01:39.5]} 37... Bd5 {[%clk 0:02:23.5]} 38. Nc7 {[%clk
0:01:37.7]} 38... Ke4 {[%clk 0:02:16.1]} 39. Nxe6 {[%clk 0:01:32.5]} 39... Rh3+
{[%clk 0:02:15.1]} 40. Kb4 {[%clk 0:01:29.8]} 40... Rxb3+ {[%clk 0:02:13.8]} 41.
Ka4 {[%clk 0:01:27.5]} 41... b5+ {[%clk 0:02:12.9]} 42. Ka5 {[%clk 0:01:24.5]}
42... Bxe6 {[%clk 0:02:12.2]} 43. Rxe6+ {[%clk 0:01:23.2]} 43... Kxd4 {[%clk
0:02:11.6]} 44. Rf6 {[%clk 0:01:18.7]} 44... Ke5 {[%clk 0:02:10.6]} 45. Rf8
{[%clk 0:01:17.4]} 45... Rxa3+ {[%clk 0:02:09.6]} 46. Kxb5 {[%clk 0:01:16.2]}
46... Rc3 {[%clk 0:02:09.1]} 47. Kb4 {[%clk 0:01:15.3]} 47... Rc1 {[%clk
0:02:07.6]} 48. Kb3 {[%clk 0:01:14.3]} 48... f4 {[%clk 0:02:05.9]} 49. Kb2
{[%clk 0:01:12.8]} 49... Rc6 {[%clk 0:02:03]} 50. Re8+ {[%clk 0:01:08.6]} 50...
Kd4 {[%clk 0:02:01.6]} 51. Kb3 {[%clk 0:01:00.8]} 51... f3 {[%clk 0:02:00.4]}
52. Rf8 {[%clk 0:00:58.9]} 52... Ke3 {[%clk 0:01:59.5]} 53. Kb4 {[%clk
0:00:57.6]} 53... f2 {[%clk 0:01:58.4]} 54. Kb5 {[%clk 0:00:55.7]} 54... Rc1
{[%clk 0:01:57.6]} 55. Re8+ {[%clk 0:00:54]} 55... Kd4 {[%clk 0:01:56.6]} 56.
Rd8+ {[%clk 0:00:52.6]} 56... Ke5 {[%clk 0:01:55.8]} 57. Re8+ {[%clk 0:00:51.5]}
57... Kd6 {[%clk 0:01:55.1]} 58. Rf8 {[%clk 0:00:48.8]} 58... f1=Q+ {[%clk
0:01:53.9]} 0-1